[Event "Titled Tuesday Blitz May 30 Early 2023"]
[White "Olenik Campa, Rudi"]
[Black "Nissinen, Niilo Man"]
[WhiteFideId "14633264"]
[BlackFideId "30950767"]
[WhiteElo "2249"]
[BlackElo "1952"]
[Result "1-0"]
[Round "02"]
[TimeControl "180+2"]
[Date "2023.05.30"]
[WhiteClock "0:02:35"]
[BlackClock "0:01:32"]

1. e4 {[%clk 0:03:00]}  e5 {[%clk 0:03:00]} 2. Nf3 {[%clk 0:03:00]}  Nc6 {[%clk 0:03:00]} 3. Bb5 {[%clk 0:03:00]}  Nf6 {[%clk 0:03:00]} 4. d3 {[%clk 0:02:58]}  d6 {[%clk 0:02:58]} 5. O-O {[%clk 0:02:57]}  Be7 {[%clk 0:02:58]} 6. c3 {[%clk 0:02:57]}  O-O {[%clk 0:02:58]} 7. Nbd2 {[%clk 0:02:57]}  a6 {[%clk 0:02:56]} 8. Ba4 {[%clk 0:02:57]}  Re8 {[%clk 0:02:56]} 9. Re1 {[%clk 0:02:57]}  Bf8 {[%clk 0:02:56]} 10. Bc2 {[%clk 0:02:56]}  d5 {[%clk 0:02:52]} 11. Qe2 {[%clk 0:02:55]}  d4 {[%clk 0:02:52]} 12. Nf1 {[%clk 0:02:55]}  Bh3 {[%clk 0:02:48]} 13. gxh3 {[%clk 0:02:54]}  Qd7 {[%clk 0:02:38]} 14. Kg2 {[%clk 0:02:54]}  Nh5 {[%clk 0:02:38]} 15. Ng3 {[%clk 0:02:53]}  Nf4+ {[%clk 0:02:37]} 16. Bxf4 {[%clk 0:02:53]}  exf4 {[%clk 0:02:38]} 17. Nf5 {[%clk 0:02:51]}  dxc3 {[%clk 0:02:36]} 18. bxc3 {[%clk 0:02:52]}  g6 {[%clk 0:02:36]} 19. N5d4 {[%clk 0:02:51]}  Ne5 {[%clk 0:02:31]} 20. Nxe5 {[%clk 0:02:51]}  Rxe5 {[%clk 0:02:32]} 21. Nf3 {[%clk 0:02:51]}  Rh5 {[%clk 0:02:31]} 22. h4 {[%clk 0:02:49]}  Be7 {[%clk 0:01:59]} 23. Kh1 {[%clk 0:02:48]}  Bxh4 {[%clk 0:01:58]} 24. Nxh4 {[%clk 0:02:49]}  Rxh4 {[%clk 0:01:59]} 25. Qf3 {[%clk 0:02:49]}  Re8 {[%clk 0:01:52]} 26. e5 {[%clk 0:02:47]}  Rh3 {[%clk 0:01:50]} 27. Qxf4 {[%clk 0:02:46]}  f5 {[%clk 0:01:47]} 28. exf6 {[%clk 0:02:37]}  Qc6+ {[%clk 0:01:38]} 29. Kg1 {[%clk 0:02:37]}  Rxe1+ {[%clk 0:01:34]} 30. Rxe1 {[%clk 0:02:36]}  Qxc3 {[%clk 0:01:32]} 31. f7+ {[%clk 0:02:35]} 1-0


[Site "https://www.chess.com"]

[Event "Titled Tuesday Blitz May 30 Early 2023"]
[White "Benaddi, Mouhcine"]
[Black "The_Sherman_Variation"]
[WhiteFideId "9001050"]
[WhiteElo "2036"]
[BlackElo "2496"]
[Result "0-1"]
[Round "02"]
[TimeControl "180+2"]
[Date "2023.05.30"]
[WhiteClock "0:00:44"]
[BlackClock "0:01:13"]

1. Nf3 {[%clk 0:03:00]}  b5 {[%clk 0:02:58]} 2. g3 {[%clk 0:03:01]}  Bb7 {[%clk 0:02:57]} 3. Bg2 {[%clk 0:03:02]}  g5 {[%clk 0:02:56]} 4. h3 {[%clk 0:02:54]}  h5 {[%clk 0:02:55]} 5. d3 {[%clk 0:02:48]}  Bh6 {[%clk 0:02:52]} 6. Nc3 {[%clk 0:02:43]}  g4 {[%clk 0:02:47]} 7. hxg4 {[%clk 0:02:38]}  hxg4 {[%clk 0:02:45]} 8. Nh4 {[%clk 0:02:28]}  Bxg2 {[%clk 0:02:38]} 9. Nxg2 {[%clk 0:02:29]}  b4 {[%clk 0:02:31]} 10. Bxh6 {[%clk 0:02:25]}  bxc3 {[%clk 0:02:28]} 11. Qc1 {[%clk 0:02:21]}  cxb2 {[%clk 0:02:27]} 12. Qxb2 {[%clk 0:02:21]}  f6 {[%clk 0:02:17]} 13. Qd4 {[%clk 0:01:41]}  d5 {[%clk 0:01:40]} 14. Qxg4 {[%clk 0:01:38]}  Nxh6 {[%clk 0:01:28]} 15. Qg6+ {[%clk 0:01:37]}  Kd7 {[%clk 0:01:27]} 16. Rxh6 {[%clk 0:01:37]}  Nc6 {[%clk 0:01:25]} 17. Qf5+ {[%clk 0:01:35]}  e6 {[%clk 0:01:22]} 18. Rh7+ {[%clk 0:01:24]}  Kd6 {[%clk 0:01:20]} 19. Qf4+ {[%clk 0:01:11]}  e5 {[%clk 0:01:20]} 20. Rxh8 {[%clk 0:01:01]}  Qxh8 {[%clk 0:01:16]} 21. Qh4 {[%clk 0:01:01]}  Qg7 {[%clk 0:01:15]} 22. Rb1 {[%clk 0:00:44]}  Rh8 {[%clk 0:01:13]} 0-1


[Site "https://www.chess.com"]

[Event "Titled Tuesday Blitz May 30 Early 2023"]
[White "Dylag, Emilia"]
[Black "Lorenzo De La Riva, Lazaro"]
[WhiteFideId "21805172"]
[BlackFideId "2268809"]
[WhiteElo "1878"]
[BlackElo "2294"]
[Result "1-0"]
[Round "02"]
[TimeControl "180+2"]
[Date "2023.05.30"]
[WhiteClock "0:00:12"]
[BlackClock "0:00:18"]

1. d4 {[%clk 0:02:58]}  Nf6 {[%clk 0:03:00]} 2. c4 {[%clk 0:02:57]}  a6 {[%clk 0:02:56]} 3. g3 {[%clk 0:02:56]}  c5 {[%clk 0:02:52]} 4. d5 {[%clk 0:02:54]}  b5 {[%clk 0:02:47]} 5. Qc2 {[%clk 0:02:53]}  bxc4 {[%clk 0:02:35]} 6. e4 {[%clk 0:02:51]}  d6 {[%clk 0:02:33]} 7. Bxc4 {[%clk 0:02:50]}  g6 {[%clk 0:02:29]} 8. Nc3 {[%clk 0:02:50]}  Bg7 {[%clk 0:02:29]} 9. h3 {[%clk 0:02:46]}  O-O {[%clk 0:02:29]} 10. f4 {[%clk 0:02:46]}  Nbd7 {[%clk 0:02:19]} 11. Nf3 {[%clk 0:02:46]}  Nb6 {[%clk 0:02:17]} 12. Be2 {[%clk 0:02:43]}  Bb7 {[%clk 0:02:15]} 13. O-O {[%clk 0:02:41]}  e6 {[%clk 0:02:09]} 14. dxe6 {[%clk 0:02:37]}  fxe6 {[%clk 0:02:10]} 15. Ng5 {[%clk 0:02:28]}  Re8 {[%clk 0:02:09]} 16. a4 {[%clk 0:02:23]}  h6 {[%clk 0:02:00]} 17. Nf3 {[%clk 0:02:21]}  Nh5 {[%clk 0:01:58]} 18. Kh2 {[%clk 0:02:17]}  Qe7 {[%clk 0:01:34]} 19. g4 {[%clk 0:02:09]}  Nf6 {[%clk 0:01:33]} 20. e5 {[%clk 0:02:09]}  Nfd7 {[%clk 0:01:19]} 21. Qxg6 {[%clk 0:02:01]}  dxe5 {[%clk 0:01:18]} 22. fxe5 {[%clk 0:01:52]}  Bxf3 {[%clk 0:01:17]} 23. Bxf3 {[%clk 0:01:51]}  Nxe5 {[%clk 0:01:17]} 24. Qe4 {[%clk 0:01:47]}  Nxf3+ {[%clk 0:01:16]} 25. Rxf3 {[%clk 0:01:47]}  Nd5 {[%clk 0:01:13]} 26. Nxd5 {[%clk 0:01:45]}  exd5 {[%clk 0:01:14]} 27. Qxd5+ {[%clk 0:01:45]}  Kh8 {[%clk 0:01:13]} 28. Be3 {[%clk 0:01:38]}  Rad8 {[%clk 0:01:12]} 29. Qh5 {[%clk 0:01:28]}  Qd6+ {[%clk 0:00:59]} 30. Kg2 {[%clk 0:01:23]}  Qc6 {[%clk 0:00:53]} 31. Re1 {[%clk 0:01:14]}  Rf8 {[%clk 0:00:41]} 32. Rf1 {[%clk 0:01:06]}  Rd1 {[%clk 0:00:34]} 33. Kg1 {[%clk 0:00:50]}  Rxf1+ {[%clk 0:00:30]} 34. Rxf1 {[%clk 0:00:49]}  Rxf1+ {[%clk 0:00:27]} 35. Kxf1 {[%clk 0:00:50]}  Qf3+ {[%clk 0:00:27]} 36. Bf2 {[%clk 0:00:50]}  Bd4 {[%clk 0:00:23]} 37. Qxh6+ {[%clk 0:00:46]}  Kg8 {[%clk 0:00:23]} 38. Qg6+ {[%clk 0:00:37]}  Kh8 {[%clk 0:00:24]} 39. Qe8+ {[%clk 0:00:33]}  Kh7 {[%clk 0:00:22]} 40. Qd7+ {[%clk 0:00:31]}  Kg8 {[%clk 0:00:22]} 41. Qe6+ {[%clk 0:00:29]}  Kh8 {[%clk 0:00:21]} 42. Qe8+ {[%clk 0:00:25]}  Kg7 {[%clk 0:00:21]} 43. Qe7+ {[%clk 0:00:24]}  Kh8 {[%clk 0:00:21]} 44. Qd8+ {[%clk 0:00:22]}  Kg7 {[%clk 0:00:21]} 45. Qg5+ {[%clk 0:00:22]}  Kh8 {[%clk 0:00:21]} 46. Qh6+ {[%clk 0:00:17]}  Kg8 {[%clk 0:00:20]} 47. Qg6+ {[%clk 0:00:17]}  Kh8 {[%clk 0:00:19]} 48. Qh5+ {[%clk 0:00:10]}  Kg7 {[%clk 0:00:19]} 49. Qg5+ {[%clk 0:00:11]}  Kf7 {[%clk 0:00:19]} 50. Qf5+ {[%clk 0:00:11]}  Qxf5 {[%clk 0:00:19]} 51. gxf5 {[%clk 0:00:12]}  Bxb2 {[%clk 0:00:19]} 52. Bxc5 {[%clk 0:00:11]}  Bc3 {[%clk 0:00:20]} 53. Bb6 {[%clk 0:00:11]}  a5 {[%clk 0:00:20]} 54. Bd8 {[%clk 0:00:09]}  Ke8 {[%clk 0:00:16]} 55. Bg5 {[%clk 0:00:09]}  Kf7 {[%clk 0:00:16]} 56. h4 {[%clk 0:00:08]}  Bb4 {[%clk 0:00:16]} 57. Kf2 {[%clk 0:00:08]}  Bc5+ {[%clk 0:00:16]} 58. Kf3 {[%clk 0:00:08]}  Bb4 {[%clk 0:00:17]} 59. Ke4 {[%clk 0:00:08]}  Kg7 {[%clk 0:00:15]} 60. h5 {[%clk 0:00:08]}  Kf7 {[%clk 0:00:14]} 61. h6 {[%clk 0:00:09]}  Bf8 {[%clk 0:00:14]} 62. Kd5 {[%clk 0:00:08]}  Kg8 {[%clk 0:00:13]} 63. Kc6 {[%clk 0:00:08]}  Kh7 {[%clk 0:00:13]} 64. Kb5 {[%clk 0:00:09]}  Bb4 {[%clk 0:00:13]} 65. Bf4 {[%clk 0:00:08]}  Bc3 {[%clk 0:00:13]} 66. Bc7 {[%clk 0:00:08]}  Kxh6 {[%clk 0:00:14]} 67. Bxa5 {[%clk 0:00:08]}  Be5 {[%clk 0:00:15]} 68. Bd8 {[%clk 0:00:08]}  Kg7 {[%clk 0:00:14]} 69. f6+ {[%clk 0:00:08]}  Kf7 {[%clk 0:00:13]} 70. a5 {[%clk 0:00:09]}  Bb8 {[%clk 0:00:13]} 71. a6 {[%clk 0:00:08]}  Ba7 {[%clk 0:00:13]} 72. Kc6 {[%clk 0:00:08]}  Bf2 {[%clk 0:00:13]} 73. Kb7 {[%clk 0:00:08]}  Ke8 {[%clk 0:00:12]} 74. Be7 {[%clk 0:00:09]}  Bd4 {[%clk 0:00:11]} 75. a7 {[%clk 0:00:09]}  Bxa7 {[%clk 0:00:12]} 76. Kxa7 {[%clk 0:00:09]}  Kf7 {[%clk 0:00:13]} 77. Kb6 {[%clk 0:00:10]}  Ke8 {[%clk 0:00:14]} 78. Kc6 {[%clk 0:00:10]}  Kf7 {[%clk 0:00:14]} 79. Kd6 {[%clk 0:00:11]}  Ke8 {[%clk 0:00:15]} 80. Ke5 {[%clk 0:00:10]}  Kf7 {[%clk 0:00:16]} 81. Kf5 {[%clk 0:00:10]}  Ke8 {[%clk 0:00:17]} 82. Kg6 {[%clk 0:00:10]}  Kd7 {[%clk 0:00:17]} 83. f7 {[%clk 0:00:11]}  Kxe7 {[%clk 0:00:18]} 84. Kg7 {[%clk 0:00:12]}  Ke6 {[%clk 0:00:18]} 85. f8=Q {[%clk 0:00:12]} 1-0


[Site "https://www.chess.com"]

[Event "Titled Tuesday Blitz May 30 Early 2023"]
[White "Bashirli, Saadat"]
[Black "Karas, Marek"]
[WhiteFideId "13429990"]
[BlackFideId "14928558"]
[WhiteElo "1408"]
[BlackElo "2233"]
[Result "1/2-1/2"]
[Round "02"]
[TimeControl "180+2"]
[Date "2023.05.30"]
[WhiteClock "0:00:08"]
[BlackClock "0:00:06"]

1. e4 {[%clk 0:03:00]}  g6 {[%clk 0:02:58]} 2. d4 {[%clk 0:03:00]}  Bg7 {[%clk 0:02:58]} 3. Nc3 {[%clk 0:03:01]}  d6 {[%clk 0:02:59]} 4. Be2 {[%clk 0:03:01]}  a6 {[%clk 0:02:59]} 5. h4 {[%clk 0:03:00]}  h5 {[%clk 0:02:53]} 6. Nf3 {[%clk 0:03:00]}  Bg4 {[%clk 0:02:52]} 7. Be3 {[%clk 0:02:59]}  Nc6 {[%clk 0:02:47]} 8. Qd2 {[%clk 0:02:59]}  e5 {[%clk 0:02:39]} 9. dxe5 {[%clk 0:02:56]}  Bxf3 {[%clk 0:02:34]} 10. Bxf3 {[%clk 0:02:55]}  Nxe5 {[%clk 0:02:32]} 11. Be2 {[%clk 0:02:55]}  Nf6 {[%clk 0:02:31]} 12. Bd4 {[%clk 0:02:53]}  O-O {[%clk 0:02:30]} 13. O-O-O {[%clk 0:02:48]}  Qe7 {[%clk 0:02:26]} 14. f4 {[%clk 0:02:41]}  Neg4 {[%clk 0:02:25]} 15. Bf3 {[%clk 0:02:36]}  b5 {[%clk 0:02:12]} 16. Nd5 {[%clk 0:02:30]}  Nxd5 {[%clk 0:02:10]} 17. Bxg7 {[%clk 0:02:29]}  Kxg7 {[%clk 0:02:08]} 18. Qxd5 {[%clk 0:02:29]}  Nf6 {[%clk 0:02:04]} 19. Qd4 {[%clk 0:02:24]}  Kg8 {[%clk 0:02:02]} 20. Rhg1 {[%clk 0:02:13]}  Rad8 {[%clk 0:01:50]} 21. Rde1 {[%clk 0:01:59]}  c5 {[%clk 0:01:43]} 22. Qd2 {[%clk 0:01:57]}  Qe6 {[%clk 0:01:40]} 23. Kb1 {[%clk 0:01:50]}  Rfe8 {[%clk 0:01:34]} 24. f5 {[%clk 0:01:50]}  Qe5 {[%clk 0:01:30]} 25. fxg6 {[%clk 0:01:48]}  fxg6 {[%clk 0:01:31]} 26. Qh6 {[%clk 0:01:47]}  Kf7 {[%clk 0:01:27]} 27. Ref1 {[%clk 0:01:43]}  Rh8 {[%clk 0:01:26]} 28. Qd2 {[%clk 0:01:42]}  Kg7 {[%clk 0:01:25]} 29. Re1 {[%clk 0:01:34]}  Rhf8 {[%clk 0:01:14]} 30. g4 {[%clk 0:01:31]}  Nxg4 {[%clk 0:01:11]} 31. Bxg4 {[%clk 0:01:32]}  hxg4 {[%clk 0:01:12]} 32. Rxg4 {[%clk 0:01:29]}  d5 {[%clk 0:01:07]} 33. exd5 {[%clk 0:01:24]}  Rxd5 {[%clk 0:01:01]} 34. Qa5 {[%clk 0:00:52]}  Rfd8 {[%clk 0:00:48]} 35. Rc1 {[%clk 0:00:22]}  Rd1 {[%clk 0:00:44]} 36. Rg1 {[%clk 0:00:22]}  Rxg1 {[%clk 0:00:38]} 37. Rxg1 {[%clk 0:00:21]}  Qh2 {[%clk 0:00:28]} 38. Rc1 {[%clk 0:00:18]}  Qd6 {[%clk 0:00:26]} 39. a3 {[%clk 0:00:17]}  Rf8 {[%clk 0:00:24]} 40. Rg1 {[%clk 0:00:17]}  Kh7 {[%clk 0:00:23]} 41. Qc3 {[%clk 0:00:16]}  Rf4 {[%clk 0:00:19]} 42. h5 {[%clk 0:00:16]}  Qd4 {[%clk 0:00:08]} 43. hxg6+ {[%clk 0:00:15]}  Kg7 {[%clk 0:00:08]} 44. Qg3 {[%clk 0:00:14]}  Qf6 {[%clk 0:00:06]} 45. Qg2 {[%clk 0:00:11]}  Rf3 {[%clk 0:00:05]} 46. Qg4 {[%clk 0:00:06]}  Qf5 {[%clk 0:00:05]} 47. Qxf5 {[%clk 0:00:02]}  Rxf5 {[%clk 0:00:05]} 48. Kc1 {[%clk 0:00:02]}  Rf2 {[%clk 0:00:05]} 49. Kd1 {[%clk 0:00:03]}  Rh2 {[%clk 0:00:04]} 50. Kc1 {[%clk 0:00:03]}  Rf2 {[%clk 0:00:04]} 51. Re1 {[%clk 0:00:03]}  Kxg6 {[%clk 0:00:04]} 52. Re6+ {[%clk 0:00:03]}  Rf6 {[%clk 0:00:04]} 53. Re5 {[%clk 0:00:03]}  Rf5 {[%clk 0:00:03]} 54. Re6+ {[%clk 0:00:04]}  Rf6 {[%clk 0:00:03]} 55. Rxf6+ {[%clk 0:00:04]}  Kxf6 {[%clk 0:00:03]} 56. Kd2 {[%clk 0:00:05]}  Ke5 {[%clk 0:00:04]} 57. Ke3 {[%clk 0:00:05]}  a5 {[%clk 0:00:03]} 58. b3 {[%clk 0:00:05]}  Kd5 {[%clk 0:00:02]} 59. c3 {[%clk 0:00:04]}  Ke5 {[%clk 0:00:02]} 60. c4 {[%clk 0:00:01]}  bxc4 {[%clk 0:00:02]} 61. bxc4 {[%clk 0:00:02]}  a4 {[%clk 0:00:03]} 62. Kd3 {[%clk 0:00:02]}  Kf4 {[%clk 0:00:03]} 63. Kd2 {[%clk 0:00:02]}  Ke4 {[%clk 0:00:04]} 64. Kc3 {[%clk 0:00:03]}  Ke3 {[%clk 0:00:05]} 65. Kc2 {[%clk 0:00:03]}  Kd4 {[%clk 0:00:06]} 66. Kb2 {[%clk 0:00:04]}  Kxc4 {[%clk 0:00:06]} 67. Kc2 {[%clk 0:00:05]}  Kd4 {[%clk 0:00:07]} 68. Kd2 {[%clk 0:00:06]}  c4 {[%clk 0:00:07]} 69. Kc2 {[%clk 0:00:06]}  Kd5 {[%clk 0:00:07]} 70. Kc3 {[%clk 0:00:07]}  Kc5 {[%clk 0:00:08]} 71. Kc2 {[%clk 0:00:07]}  Kc6 {[%clk 0:00:07]} 72. Kd2 {[%clk 0:00:08]}  Kd6 {[%clk 0:00:07]} 73. Kc2 {[%clk 0:00:08]}  Kd5 {[%clk 0:00:07]} 74. Kd2 {[%clk 0:00:07]}  Kd4 {[%clk 0:00:06]} 75. Kc2 {[%clk 0:00:08]}  c3 {[%clk 0:00:07]} 76. Kc1 {[%clk 0:00:08]}  Kd3 {[%clk 0:00:06]} 77. Kd1 {[%clk 0:00:09]}  Kd4 {[%clk 0:00:05]} 78. Kc1 {[%clk 0:00:08]}  Kc5 {[%clk 0:00:05]} 79. Kd1 {[%clk 0:00:08]}  Kc4 {[%clk 0:00:05]} 80. Kc2 {[%clk 0:00:08]}  Kd4 {[%clk 0:00:06]} 81. Kc1 {[%clk 0:00:08]} 1/2-1/2


[Site "https://www.chess.com"]

[Event "Titled Tuesday Blitz May 30 Early 2023"]
[White "Mika, Tomasz"]
[Black "mohsengabr2002"]
[WhiteFideId "1132970"]
[WhiteElo "2179"]
[BlackElo "2244"]
[Result "1-0"]
[Round "02"]
[TimeControl "180+2"]
[Date "2023.05.30"]
[WhiteClock "0:00:03"]
[BlackClock "0:00:00"]

1. d4 {[%clk 0:03:00]}  e6 {[%clk 0:02:56]} 2. Nf3 {[%clk 0:03:00]}  d5 {[%clk 0:02:56]} 3. Bf4 {[%clk 0:03:00]}  c5 {[%clk 0:02:54]} 4. e3 {[%clk 0:03:01]}  Qb6 {[%clk 0:02:54]} 5. b3 {[%clk 0:03:01]}  Nc6 {[%clk 0:02:53]} 6. Be2 {[%clk 0:03:00]}  Nf6 {[%clk 0:02:53]} 7. O-O {[%clk 0:03:00]}  Be7 {[%clk 0:02:48]} 8. h3 {[%clk 0:03:00]}  Bd7 {[%clk 0:02:48]} 9. Re1 {[%clk 0:03:00]}  O-O {[%clk 0:02:48]} 10. c3 {[%clk 0:02:58]}  a5 {[%clk 0:02:48]} 11. a4 {[%clk 0:02:52]}  Ne4 {[%clk 0:02:47]} 12. Bd3 {[%clk 0:02:47]}  f5 {[%clk 0:02:46]} 13. Ne5 {[%clk 0:02:47]}  Nxe5 {[%clk 0:02:46]} 14. Bxe5 {[%clk 0:02:47]}  Rac8 {[%clk 0:02:42]} 15. f3 {[%clk 0:02:47]}  Nd6 {[%clk 0:02:35]} 16. Na3 {[%clk 0:02:45]}  Nf7 {[%clk 0:02:33]} 17. Bh2 {[%clk 0:02:40]}  Bg5 {[%clk 0:02:22]} 18. Bb5 {[%clk 0:02:35]}  Bc6 {[%clk 0:02:22]} 19. Bxc6 {[%clk 0:02:21]}  bxc6 {[%clk 0:02:21]} 20. Rb1 {[%clk 0:02:20]}  Rfe8 {[%clk 0:02:20]} 21. Nc2 {[%clk 0:02:18]}  cxd4 {[%clk 0:02:14]} 22. cxd4 {[%clk 0:02:14]}  e5 {[%clk 0:02:11]} 23. dxe5 {[%clk 0:02:14]}  Bh4 {[%clk 0:01:58]} 24. g3 {[%clk 0:02:07]}  Be7 {[%clk 0:01:51]} 25. f4 {[%clk 0:02:08]}  Red8 {[%clk 0:01:49]} 26. Kg2 {[%clk 0:02:07]}  c5 {[%clk 0:01:49]} 27. Bg1 {[%clk 0:02:06]}  Qc6 {[%clk 0:01:46]} 28. Kh2 {[%clk 0:02:06]}  Rb8 {[%clk 0:01:44]} 29. Re2 {[%clk 0:02:05]}  Rd7 {[%clk 0:01:40]} 30. Rd2 {[%clk 0:02:05]}  Rbd8 {[%clk 0:01:40]} 31. Na3 {[%clk 0:02:02]}  Rb8 {[%clk 0:01:34]} 32. Nb5 {[%clk 0:02:01]}  Nd8 {[%clk 0:01:34]} 33. Qf3 {[%clk 0:01:55]}  Ne6 {[%clk 0:01:33]} 34. Rbd1 {[%clk 0:01:52]}  Rbd8 {[%clk 0:01:33]} 35. Bf2 {[%clk 0:01:42]}  c4 {[%clk 0:01:33]} 36. Rc2 {[%clk 0:01:34]}  Bb4 {[%clk 0:01:27]} 37. bxc4 {[%clk 0:01:31]}  Qc8 {[%clk 0:01:11]} 38. Qe2 {[%clk 0:01:12]}  dxc4 {[%clk 0:01:10]} 39. Rxd7 {[%clk 0:01:11]}  Rxd7 {[%clk 0:01:06]} 40. Rxc4 {[%clk 0:01:10]}  Qb7 {[%clk 0:01:04]} 41. Nd4 {[%clk 0:01:04]}  Qd5 {[%clk 0:00:53]} 42. Nxf5 {[%clk 0:00:47]}  g6 {[%clk 0:00:21]} 43. Nd4 {[%clk 0:00:43]}  Nc5 {[%clk 0:00:20]} 44. e6 {[%clk 0:00:33]}  Nxe6 {[%clk 0:00:19]} 45. Nxe6 {[%clk 0:00:34]}  Qxe6 {[%clk 0:00:19]} 46. Rc2 {[%clk 0:00:31]}  Qe4 {[%clk 0:00:18]} 47. Rc8+ {[%clk 0:00:23]}  Kg7 {[%clk 0:00:18]} 48. Rc2 {[%clk 0:00:18]}  Rd3 {[%clk 0:00:18]} 49. h4 {[%clk 0:00:14]}  h5 {[%clk 0:00:17]} 50. Rc7+ {[%clk 0:00:08]}  Kh6 {[%clk 0:00:17]} 51. Rc2 {[%clk 0:00:09]}  Bc3 {[%clk 0:00:16]} 52. g4 {[%clk 0:00:08]}  hxg4 {[%clk 0:00:08]} 53. Qxg4 {[%clk 0:00:08]}  Bf6 {[%clk 0:00:08]} 54. Qe2 {[%clk 0:00:05]}  Bc3 {[%clk 0:00:07]} 55. Qg4 {[%clk 0:00:04]}  Bf6 {[%clk 0:00:07]} 56. Rc1 {[%clk 0:00:03]}  Rd2 {[%clk 0:00:00]} 57. Qg3 {[%clk 0:00:03]} 1-0


[Site "https://www.chess.com"]

[Event "Titled Tuesday Blitz May 30 Early 2023"]
[White "Tanmay Jain"]
[Black "Sailer, Mike"]
[WhiteFideId "45015481"]
[BlackFideId "2012901"]
[WhiteElo "2032"]
[BlackElo "2109"]
[Result "1-0"]
[Round "02"]
[TimeControl "180+2"]
[Date "2023.05.30"]
[WhiteClock "0:00:23"]
[BlackClock "0:00:00"]

1. e4 {[%clk 0:03:00]}  d5 {[%clk 0:02:59]} 2. exd5 {[%clk 0:03:00]}  Qxd5 {[%clk 0:02:58]} 3. Nf3 {[%clk 0:03:01]}  Bg4 {[%clk 0:02:58]} 4. Nc3 {[%clk 0:03:00]}  Qd6 {[%clk 0:02:55]} 5. h3 {[%clk 0:02:59]}  Bh5 {[%clk 0:02:54]} 6. d4 {[%clk 0:02:57]}  c6 {[%clk 0:02:52]} 7. g4 {[%clk 0:02:57]}  Bg6 {[%clk 0:02:50]} 8. Be3 {[%clk 0:02:57]}  e6 {[%clk 0:02:42]} 9. Qd2 {[%clk 0:02:57]}  Nf6 {[%clk 0:02:33]} 10. O-O-O {[%clk 0:02:56]}  Be7 {[%clk 0:02:32]} 11. Bf4 {[%clk 0:02:56]}  Qb4 {[%clk 0:02:32]} 12. Ne5 {[%clk 0:02:49]}  Nd5 {[%clk 0:02:13]} 13. Nxd5 {[%clk 0:02:29]}  Qxd2+ {[%clk 0:02:12]} 14. Rxd2 {[%clk 0:02:30]}  exd5 {[%clk 0:02:01]} 15. h4 {[%clk 0:02:24]}  Nd7 {[%clk 0:01:28]} 16. Nxg6 {[%clk 0:01:55]}  hxg6 {[%clk 0:01:26]} 17. Bg3 {[%clk 0:01:54]}  O-O-O {[%clk 0:01:19]} 18. Bd3 {[%clk 0:01:51]}  Nf6 {[%clk 0:01:11]} 19. f3 {[%clk 0:01:49]}  Bd6 {[%clk 0:01:11]} 20. Be5 {[%clk 0:01:33]}  Bxe5 {[%clk 0:01:04]} 21. dxe5 {[%clk 0:01:32]}  Nd7 {[%clk 0:01:04]} 22. f4 {[%clk 0:01:26]}  Nc5 {[%clk 0:01:04]} 23. Re2 {[%clk 0:01:24]}  Nxd3+ {[%clk 0:01:01]} 24. cxd3 {[%clk 0:01:24]}  Kd7 {[%clk 0:01:02]} 25. Kd2 {[%clk 0:01:23]}  Rh7 {[%clk 0:00:57]} 26. f5 {[%clk 0:01:11]}  gxf5 {[%clk 0:00:52]} 27. gxf5 {[%clk 0:01:12]}  Rdh8 {[%clk 0:00:52]} 28. Rg2 {[%clk 0:01:12]}  Ke7 {[%clk 0:00:47]} 29. Rg4 {[%clk 0:01:12]}  Kf8 {[%clk 0:00:41]} 30. Kc3 {[%clk 0:01:12]}  Rh5 {[%clk 0:00:41]} 31. Rf4 {[%clk 0:01:10]}  R8h6 {[%clk 0:00:35]} 32. d4 {[%clk 0:00:52]}  Ke7 {[%clk 0:00:35]} 33. Rg1 {[%clk 0:00:49]}  g6 {[%clk 0:00:21]} 34. fxg6 {[%clk 0:00:47]}  fxg6 {[%clk 0:00:13]} 35. Rfg4 {[%clk 0:00:40]}  Kf7 {[%clk 0:00:13]} 36. Rf4+ {[%clk 0:00:40]}  Kg7 {[%clk 0:00:12]} 37. e6 {[%clk 0:00:40]}  Rxh4 {[%clk 0:00:10]} 38. e7 {[%clk 0:00:40]}  Rh3+ {[%clk 0:00:08]} 39. Kb4 {[%clk 0:00:40]}  Re3 {[%clk 0:00:09]} 40. Kc5 {[%clk 0:00:34]}  Rxe7 {[%clk 0:00:09]} 41. Kd6 {[%clk 0:00:34]}  Re4 {[%clk 0:00:09]} 42. Rxe4 {[%clk 0:00:33]}  dxe4 {[%clk 0:00:10]} 43. Kc7 {[%clk 0:00:32]}  Rh2 {[%clk 0:00:09]} 44. Kxb7 {[%clk 0:00:28]}  Rxb2+ {[%clk 0:00:09]} 45. Kxc6 {[%clk 0:00:29]}  Rxa2 {[%clk 0:00:10]} 46. Rg4 {[%clk 0:00:29]}  e3 {[%clk 0:00:09]} 47. d5 {[%clk 0:00:29]}  e2 {[%clk 0:00:08]} 48. Re4 {[%clk 0:00:30]}  Kf6 {[%clk 0:00:07]} 49. d6 {[%clk 0:00:30]}  Rd2 {[%clk 0:00:07]} 50. d7 {[%clk 0:00:29]}  g5 {[%clk 0:00:07]} 51. Rxe2 {[%clk 0:00:29]}  Rxd7 {[%clk 0:00:05]} 52. Kxd7 {[%clk 0:00:29]}  Kf5 {[%clk 0:00:06]} 53. Kd6 {[%clk 0:00:29]}  Kf4 {[%clk 0:00:07]} 54. Kd5 {[%clk 0:00:29]}  Kf3 {[%clk 0:00:07]} 55. Re8 {[%clk 0:00:26]}  g4 {[%clk 0:00:08]} 56. Rf8+ {[%clk 0:00:27]}  Ke3 {[%clk 0:00:08]} 57. Re8+ {[%clk 0:00:25]}  Kf3 {[%clk 0:00:08]} 58. Kd4 {[%clk 0:00:25]}  a5 {[%clk 0:00:07]} 59. Kd3 {[%clk 0:00:24]}  g3 {[%clk 0:00:06]} 60. Rf8+ {[%clk 0:00:24]}  Kg2 {[%clk 0:00:06]} 61. Ke2 {[%clk 0:00:25]}  a4 {[%clk 0:00:06]} 62. Ra8 {[%clk 0:00:23]}  Kh2 {[%clk 0:00:05]} 63. Kf3 {[%clk 0:00:22]}  g2 {[%clk 0:00:03]} 64. Rh8+ {[%clk 0:00:22]}  Kg1 {[%clk 0:00:03]} 65. Rg8 {[%clk 0:00:22]}  Kf1 {[%clk 0:00:00]} 66. Rxg2 {[%clk 0:00:23]} 1-0


[Site "https://www.chess.com"]